bitfinex/quotes_ETHUSD_20230905
["timestamp","ask_amount","ask_price","bid_price","bid_amount"]
[1693928648699,0.9583987,1638.9,1638.8,8.15696325]
[1693928648929,2.21896753,1638.9,1638.8,8.15696325]
[1693928649140,0.63911133,1638.9,1638.8,8.15696325]
[1693928649500,1.89968016,1638.9,1638.8,8.15696325]
[1693928649755,1.59751003,1638.9,1638.8,8.15696325]
[1693928649956,2.96028444,1638.9,1638.8,14.25898325]
[1693928650118,0.9583987,1639.0,1638.8,23.84100325]
[1693928650119,0.63911133,1639.0,1638.8,23.84100325]
[1693928650305,0.63911133,1639.1,1639.0,18.30384]
[1693928651320,0.63911133,1639.1,1639.0,6.10128]
[1693928651607,1.59751003,1639.1,1639.0,6.10128]
[1693928652037,3.38311961,1639.1,1639.0,6.10128]
[1693928652520,0.9583987,1639.1,1639.0,6.10128]
[1693928652912,3.38311961,1639.1,1639.0,6.84284939]
[1693928653722,0.9583987,1639.1,1639.0,19.04540939]
[1693928653929,0.9583987,1639.1,1639.0,13.42412939]
[1693928653930,3.38311961,1639.1,1639.0,13.42412939]
[1693928654238,4.02248606,1639.1,1639.0,19.52540939]
[1693928654438,3.06408736,1639.1,1639.0,13.42412939]
[1693928654607,0.63936645,1639.1,1639.0,13.42412939]
[1693928655006,2.00352659,1639.1,1639.0,13.42412939]
[1693928655217,0.63936645,1639.1,1639.0,13.42412939]
[1693928655419,2.00352659,1639.1,1639.0,13.42412939]
[1693928655613,0.63936645,1639.1,1639.0,13.42412939]
[1693928656143,3.06408736,1639.1,1639.0,13.42412939]
[1693928656314,0.63936645,1639.1,1639.0,13.42412939]
[1693928656923,2.00352659,1639.1,1639.0,13.42412939]
[1693928657212,3.06408736,1639.1,1639.0,13.42412939]
[1693928657414,0.63936645,1639.1,1639.0,19.52540939]
[1693928657722,0.63936645,1639.3,1639.0,22.52540939]
[1693928657931,0.63936645,1639.3,1639.1,1.1319498]
[1693928658250,0.63936645,1639.3,1639.2,12.20106]
[1693928659116,2.0029975,1639.3,1639.2,12.20106]
[1693928659317,0.63936645,1639.3,1639.2,12.20106]
[1693928660729,2.0026745,1639.3,1639.2,12.20106]
[1693928662741,0.63936645,1639.3,1639.2,12.20106]
[1693928663520,0.63936645,1639.3,1639.2,6.10053]
[1693928663720,1.6997842,1639.3,1639.2,6.10053]
[1693928664937,3.06229819,1639.3,1639.2,6.10053]
[1693928665886,1.6997842,1639.3,1639.2,6.10053]
[1693928666979,3.06241874,1639.3,1639.2,6.10053]
[1693928670647,3.06241874,1639.3,1639.2,12.20106]
[1693928671853,3.80793754,1639.3,1639.2,12.20106]
[1693928672079,4.12696979,1639.3,1639.2,6.10053]
[1693928672776,4.12696979,1639.3,1639.1,12.20137]
[1693928673078,1.6988305,1639.2,1639.1,12.20137]
[1693928673682,3.06148426,1639.2,1639.1,12.20137]
[1693928673861,1.6988305,1639.2,1639.1,12.20137]
[1693928674658,0.63841275,1639.2,1639.1,12.20137]
[1693928677614,0.63841275,1639.2,1639.1,12.20536276]
[1693928677894,2.00142094,1639.2,1639.1,12.20536276]
[1693928678188,1.6988305,1639.2,1639.1,12.20536276]
[1693928678595,0.63841275,1639.2,1639.1,12.20536276]
[1693928679991,2.00152085,1639.2,1639.1,12.20536276]
[1693928680770,1.6988305,1639.2,1639.1,12.20536276]
[1693928681095,0.63841275,1639.2,1639.1,12.20536276]
[1693928681265,2.00172072,1639.2,1639.1,12.20536276]
[1693928681588,0.63841275,1639.2,1639.1,12.20536276]
[1693928682162,3.06225994,1639.2,1639.1,12.20536276]
[1693928682397,0.63841275,1639.2,1639.1,12.20536276]
[1693928682564,1.6988305,1639.2,1639.1,12.20536276]
[1693928682755,3.06238964,1639.2,1639.1,12.20536276]
[1693928682955,1.6988305,1639.2,1639.1,21.30626276]
[1693928683178,1.59681145,1639.3,1639.1,21.30626276]
[1693928683356,0.63841275,1639.3,1639.1,21.30626276]
[1693928683785,4.02080037,1639.3,1639.1,21.30626276]
[1693928684994,0.63841275,1639.3,1639.1,21.30626276]
[1693928685384,4.02105063,1639.3,1639.1,21.30626276]
[1693928685586,0.63841275,1639.3,1639.1,21.30626276]
[1693928685790,1.59681145,1639.3,1639.1,21.30626276]
[1693928685964,4.02127048,1639.3,1639.1,21.30626276]
[1693928686567,1.06044823,1639.2,1639.1,21.30626276]
[1693928686885,2.65725968,1639.3,1639.1,21.30626276]
[1693928687075,1.59681145,1639.3,1639.1,21.30626276]
[1693928687393,1.69886701,1639.2,1639.1,21.30626276]
[1693928687959,0.63841275,1639.2,1639.1,21.30626276]
[1693928688808,1.59681145,1639.2,1639.1,0.00399276]
[1693928689106,1.59681145,1639.2,1639.1,12.20579276]
[1693928689107,4.52297522,1639.2,1639.1,12.20579276]
[1693928689307,5.79232717,1639.2,1639.1,12.20579276]
[1693928689683,7.06909771,1639.2,1639.1,12.20579276]
[1693928690101,6.11069901,1639.2,1639.1,12.20579276]
[1693928692586,7.70695702,1639.2,1639.1,12.20579276]
[1693928693585,6.43018648,1639.2,1639.1,12.20579276]
[1693928694418,7.22974166,1639.2,1639.1,6.10489276]
[1693928694785,8.79510694,1639.2,1639.1,6.10489276]
[1693928698721,8.79510694,1639.2,1639.1,0.00399276]
[1693928698929,10.93420694,1639.2,1639.1,0.00399276]
[1693928699998,15.43847893,1639.2,1639.1,0.00399276]
[1693928702828,17.0398056,1639.2,1639.1,0.00399276]
[1693928703011,15.43847893,1639.2,1639.1,0.00399276]
[1693928703329,10.93927211,1639.2,1639.1,6.10489276]
[1693928705115,10.93927211,1639.2,1639.1,0.00399276]
[1693928706848,30.70655319,1639.2,1639.1,0.00399276]
[1693928707021,34.42868999,1639.2,1639.1,0.00399276]
[1693928708043,13.06008573,1639.2,1639.1,0.00399276]
[1693928708242,10.93903259,1639.2,1639.1,6.10489276]
[1693928708619,9.33794893,1639.2,1639.1,6.10489276]
[1693928708818,9.33794893,1639.2,1639.1,0.00399276]
[1693928709114,10.1394793,1639.2,1639.1,6.10489276]
[1693928709314,8.0003793,1639.2,1639.1,18.30669276]
[1693928709514,3.70553068,1639.2,1639.1,12.20579276]
[1693928709748,1.28080221,1639.2,1639.1,18.30669276]
[1693928709949,2.24138225,1639.2,1639.1,18.30669276]
[1693928710140,2.32485425,1639.2,1639.1,18.30669276]
[1693928710646,3.60565646,1639.2,1639.1,12.20579276]
[1693928711256,4.66611072,1639.2,1639.1,12.20579276]
[1693928712165,3.38530851,1639.2,1639.1,12.20579276]
[1693928712358,4.66611072,1639.2,1639.1,12.20579276]
[1693928712566,3.38530851,1639.2,1639.1,12.20579276]
[1693928712866,3.60565646,1639.2,1639.1,12.20579276]
[1693928713564,2.32485425,1639.2,1639.1,12.20579276]
[1693928713935,2.32485425,1639.2,1639.1,12.86569316]
[1693928714629,3.60565646,1639.2,1639.1,12.86569316]
[1693928715262,2.32485425,1639.2,1639.1,12.86569316]
[1693928718677,3.60565646,1639.2,1639.1,12.86569316]
[1693928718849,3.38530851,1639.2,1639.1,12.86569316]
[1693928719045,2.32485425,1639.2,1639.1,12.86569316]
[1693928723879,4.02564037,1639.2,1639.1,18.96659316]
[1693928724080,3.06506033,1639.2,1639.1,18.96659316]
[1693928724381,2.00460607,1639.2,1639.1,18.96659316]
[1693928724750,0.64033186,1639.2,1639.1,18.96659316]
[1693928724950,2.00460607,1639.2,1639.1,18.96659316]
[1693928725707,3.06506033,1639.2,1639.1,18.96659316]
[1693928725852,2.00460607,1639.2,1639.1,18.96659316]
[1693928726087,0.64033186,1639.2,1639.1,18.96659316]
[1693928726299,2.00460607,1639.2,1639.1,18.96659316]
[1693928729005,3.06506033,1639.2,1639.1,18.96659316]
[1693928729688,3.06506033,1639.2,1639.1,19.44659316]
[1693928730326,2.00460607,1639.2,1639.1,19.44659316]
[1693928734091,0.64033186,1639.2,1639.1,19.44659316]
[1693928734289,1.6009119,1639.4,1639.1,26.12653947]
[1693928734588,0.64033186,1639.4,1639.2,6.54701426]
[1693928734747,3.06394622,1639.4,1639.3,18.30048]
[1693928734943,3.0639452,1639.4,1639.3,18.78048]
[1693928735146,1.7006128,1639.4,1639.3,18.78048]
[1693928735742,3.06367901,1639.4,1639.3,18.78048]
[1693928738782,1.7006128,1639.4,1639.3,18.78048]
[1693928741036,1.7006128,1639.4,1639.3,24.84749426]
[1693928741180,3.64033186,1639.5,1639.3,24.84749426]
[1693928741375,3.64033186,1639.5,1639.4,0.48]
[1693928741710,6.06292162,1639.5,1639.4,18.77937]
[1693928743416,6.06292162,1639.5,1639.4,18.29937]
[1693928744623,12.4825898,1639.5,1639.2,6.10036]
[1693928744816,4.02260252,1639.4,1639.3,6.09989]
[1693928745015,4.46107027,1639.4,1639.3,12.20005]
[1693928747883,4.46107027,1639.4,1639.3,6.09989]
[1693928748087,5.74187248,1639.4,1639.3,6.09989]
[1693928748625,11.84166248,1639.4,1639.2,6.10033]
[1693928748788,3.06216774,1639.3,1639.2,6.10033]
[1693928748987,5.27087183,1639.3,1639.1,13.47541316]
[1693928749194,4.97638207,1639.3,1639.1,13.47541316]
[1693928749822,1.06042662,1639.2,1639.1,13.47541316]
[1693928749991,1.06042711,1639.2,1639.1,13.47541316]
[1693928750187,1.70000509,1639.2,1639.1,13.47541316]
[1693928751292,2.56001601,1639.2,1639.1,1.27399316]
[1693928751499,2.56001601,1639.2,1639.1,0.66389316]
[1693928751500,10.34151364,1639.2,1639.1,0.66389316]
[1693928751885,4.24098364,1639.2,1639.1,12.86569316]
[1693928752083,3.06015454,1639.2,1639.1,12.86569316]
[1693928752321,3.06015454,1639.2,1639.1,18.96659316]
[1693928752526,1.70018897,1639.2,1639.1,18.96659316]
[1693928752726,1.70018897,1639.2,1639.1,19.44659316]
[1693928753535,3.09512512,1639.2,1639.1,19.44659316]
[1693928754441,3.09512512,1639.2,1639.1,13.34569316]
[1693928755919,3.09512512,1639.2,1639.1,6.76479316]
[1693928756244,4.05570516,1639.2,1639.1,6.76479316]
[1693928759647,4.41873404,1639.2,1639.1,0.66389316]
[1693928760149,4.41873404,1639.2,1639.1,6.76479316]
[1693928762139,10.51926404,1639.2,1639.1,0.66389316]
[1693928762515,18.53332156,1639.2,1639.1,0.66389316]
[1693928762836,24.9541349,1639.2,1639.1,0.66389316]
[1693928763026,18.8536049,1639.2,1639.1,0.66389316]
[1693928764609,20.13368535,1639.2,1639.1,0.66389316]
[1693928765049,18.8536049,1639.2,1639.1,0.66389316]
[1693928765436,20.13367048,1639.2,1639.1,0.66389316]
[1693928765951,18.8536049,1639.2,1639.1,0.66389316]
[1693928766629,20.13343956,1639.2,1639.1,0.66389316]
[1693928766927,18.8536049,1639.2,1639.1,0.66389316]
[1693928767634,18.8536049,1639.2,1639.1,0.67014512]
[1693928771859,26.42006361,1639.2,1639.1,0.67014512]
[1693928772058,28.34083793,1639.2,1639.1,0.67014512]
[1693928772427,30.18511046,1639.2,1639.1,0.67014512]
[1693928773162,32.62739046,1639.2,1639.1,0.67014512]
[1693928773524,3.26273905,1639.1,1638.8,1.31337386]
[1693928773750,1.59834236,1638.9,1638.8,1.31337386]
[1693928773951,27.01897523,1638.9,1638.8,1.31337386]
[1693928774347,31.52228287,1638.9,1638.8,7.386e-05]
[1693928774543,31.52228287,1638.9,1638.2,6.81419]
[1693928774787,0.63908761,1638.6,1638.2,6.20409]
[1693928774932,6.74196761,1638.6,1638.3,6.10388]
[1693928775238,8.91056761,1638.6,1638.3,12.20776]
[1693928775444,15.01344761,1638.6,1638.3,12.20776]
[1693928775644,8.91056761,1638.6,1638.3,12.20776]
[1693928775839,0.89105676,1638.5,1638.3,12.20776]
[1693928776045,0.89105676,1638.5,1638.3,6.10388]
[1693928776242,2.80768761,1638.6,1638.3,12.20776]
[1693928776460,2.1686,1638.6,1638.3,12.20776]
[1693928776662,8.2714,1638.6,1638.3,6.10388]
[1693928776844,8.91048761,1638.6,1638.3,6.10388]
[1693928777046,21.11605761,1638.6,1638.2,0.1]
[1693928777365,21.11605761,1638.6,1638.2,6.20421]
[1693928777366,6.10351,1638.4,1638.2,6.20421]
[1693928777667,6.10328,1638.5,1638.2,12.30847]
[1693928779747,6.10328,1638.5,1638.2,6.20421]
[1693928780135,22.01580187,1638.5,1638.2,0.1]
[1693928780442,12.20776,1638.3,1638.2,0.1]
[1693928780857,21.37865426,1638.3,1638.2,0.1]
[1693928781369,15.27477426,1638.3,1638.2,0.1]
[1693928782363,11.2091778,1638.4,1638.2,0.1]
[1693928782563,4.46638019,1638.4,1638.2,12.30852]
[1693928782766,8.36831,1638.4,1638.2,6.20426]
[1693928783266,14.47182,1638.4,1638.2,0.1]
[1693928783451,15.11090761,1638.4,1638.2,0.1]
[1693928783646,14.47182,1638.4,1638.2,0.1]
[1693928784755,20.57533,1638.4,1638.2,0.1]
[1693928785071,8.161413,1638.3,1638.2,0.1]
[1693928785295,14.265293,1638.3,1638.2,0.1]
[1693928786476,20.369173,1638.3,1638.2,0.1]
[1693928787774,14.265293,1638.3,1638.2,0.1]
[1693928792844,3.0,1638.2,1637.9,0.1]
[1693928793075,0.82764639,1638.1,1637.9,6.20514]
[1693928793279,0.19080977,1638.1,1637.9,6.20514]
[1693928794384,0.19080977,1638.1,1637.9,0.1]
[1693928794385,6.29544977,1638.1,1637.9,0.1]
[1693928794584,14.31419541,1638.1,1637.9,0.1]
[1693928794948,21.05567203,1638.1,1637.9,0.1]
[1693928795192,3.06701426,1638.0,1637.9,0.1]
[1693928795482,15.27701426,1638.0,1637.9,0.1]
[1693928796258,16.58281583,1638.0,1637.9,0.1]
[1693928796457,30.43459735,1638.0,1637.9,0.1]
[1693928796875,31.38985229,1638.0,1637.8,0.1]
[1693928797078,34.9619201,1638.0,1637.8,0.1]
[1693928797393,3.16949301,1637.9,1637.8,0.1]
[1693928797597,28.42989244,1637.9,1637.8,0.1]
[1693928797765,29.38514738,1637.9,1637.8,0.1]
[1693928797969,28.42989244,1637.9,1637.8,0.1]
[1693928798372,28.90989244,1637.9,1637.8,0.1]
[1693928798690,27.43874636,1637.9,1637.8,0.1]
[1693928799169,26.95874636,1637.9,1637.8,0.1]
[1693928799495,25.26039943,1637.9,1637.8,0.1]
[1693928802404,27.43876838,1637.9,1637.8,0.1]
[1693928802610,25.74039943,1637.9,1637.8,0.1]
[1693928803104,27.43879145,1637.9,1637.8,0.1]
[1693928803309,31.90436403,1637.9,1637.8,0.1]
[1693928804672,30.43879145,1637.9,1637.8,0.1]
[1693928804979,33.68784141,1637.7,1637.5,0.1]
[1693928805177,6.22979963,1637.6,1637.5,0.1]
[1693928805383,24.54926963,1637.6,1637.5,0.1]
[1693928805581,26.08367274,1637.6,1637.5,0.1]
[1693928806174,32.67016274,1637.6,1637.5,0.1]
[1693928806681,37.18518012,1637.6,1637.5,0.1]
[1693928807010,36.12362472,1637.6,1637.5,0.1]
[1693928807375,38.64937815,1637.6,1637.5,0.1]
[1693928807606,37.1854145,1637.6,1637.5,0.1]
[1693928808013,37.1854145,1637.6,1637.3,0.1]
[1693928808014,0.08574857,1637.4,1637.3,0.1]
[1693928808219,37.16896283,1637.4,1637.3,0.1]
[1693928808580,3.0,1637.3,1637.1,0.642544]
[1693928808782,3.0,1637.1,1636.7,0.1]
[1693928809108,27.87209426,1637.1,1636.7,0.1]
[1693928809304,32.22889969,1637.1,1636.7,0.1]
[1693928810408,6.54701426,1637.0,1636.7,0.1]
[1693928810604,24.87320426,1637.0,1636.7,0.1]
[1693928811808,3.0,1636.8,1636.7,0.1]
[1693928812010,33.98493426,1636.8,1636.7,0.1]
[1693928812315,34.38342769,1636.8,1636.7,0.1]
[1693928812530,37.38342769,1636.8,1636.7,0.1]
[1693928813226,43.49290769,1636.8,1636.7,0.1]
[1693928813848,43.42674943,1636.8,1636.7,0.1]
[1693928819463,43.42674943,1636.8,1636.5,0.1]
[1693928819464,2.93384174,1636.6,1636.5,0.1]
[1693928819741,40.031956,1636.6,1636.5,0.1]
[1693928820104,40.031956,1636.6,1636.2,0.1]
[1693928820422,21.40103426,1636.3,1636.2,0.1]
[1693928820601,21.88103426,1636.3,1636.2,0.1]
[1693928820836,25.10477186,1636.3,1636.2,0.1]
[1693928821034,25.58477186,1636.3,1636.2,0.1]
[1693928821545,25.10477186,1636.3,1636.2,0.1]
[1693928821766,6.11134,1636.3,1636.2,0.1]
[1693928821914,6.11022,1636.6,1636.3,6.17744826]
[1693928822105,0.244597,1636.4,1636.3,12.28876826]
[1693928822304,0.244597,1636.4,1636.3,6.17742826]
[1693928823338,0.244597,1636.4,1636.3,6.12742826]
[1693928823722,6.11001,1636.7,1636.3,12.23876826]
[1693928824033,6.10955,1636.8,1636.5,6.12668826]
[1693928824214,12.21919,1636.8,1636.5,6.12668826]
[1693928825603,6.10955,1636.8,1636.5,6.11053]
[1693928826050,6.10939,1636.9,1636.5,12.22113]
[1693928826338,9.17640426,1636.9,1636.5,12.22113]
[1693928826541,84.28886,1637.0,1636.5,18.33173]
[1693928826744,84.28877,1637.0,1636.6,0.01615826]
[1693928826952,84.28877,1637.0,1636.7,6.10978]
[1693928827250,15.21706,1637.1,1636.7,6.10978]
[1693928827251,6.10843,1637.1,1636.8,0.01615826]
[1693928827470,6.10843,1637.1,1636.8,6.12548826]
[1693928830997,12.21696,1637.1,1636.8,6.12548826]
[1693928831776,12.21696,1637.1,1636.8,0.01615826]
[1693928831777,21.39250426,1637.1,1636.8,0.01615826]
[1693928832879,9.17544426,1637.1,1636.8,6.12562826]
[1693928833079,6.10843,1637.1,1636.8,6.12562826]
[1693928835777,6.10803,1637.2,1636.8,18.34458826]
[1693928835974,30.45,1637.3,1637.0,0.01615826]
[1693928836180,30.45,1637.3,1637.1,6.10836]
[1693928836390,36.55651,1637.6,1637.3,12.23112826]
[1693928836609,36.55651,1637.6,1637.3,6.12351826]
[1693928836924,30.45,1637.6,1637.3,12.23112826]
[1693928837572,36.5565,1637.6,1637.3,12.23112826]
[1693928837765,30.45,1637.6,1637.3,12.23112826]
[1693928837964,30.45,1637.6,1637.5,0.01615826]
[1693928838185,7.69436564,1637.9,1637.5,12.22989826]
[1693928838186,13.80003564,1637.9,1637.5,12.22989826]
[1693928838397,12.84658601,1637.9,1637.5,12.22989826]
[1693928838719,13.80003564,1637.9,1637.5,12.22989826]
[1693928839287,12.84658601,1637.9,1637.5,12.22989826]
[1693928839687,1.06149656,1637.8,1637.5,12.22989826]
[1693928839889,7.69436564,1637.9,1637.5,12.22989826]
[1693928840716,1.6967584,1637.8,1637.5,12.22989826]
[1693928841205,13.16480963,1637.9,1637.5,18.33676826]
[1693928841206,1.58871564,1637.9,1637.5,18.33676826]
[1693928841432,4.10299601,1637.9,1637.5,18.33676826]
[1693928843098,4.10299601,1637.9,1637.7,0.01615826]
[1693928843291,31.08526601,1638.0,1637.8,12.2115]
[1693928843490,7.05808963,1638.1,1637.8,12.2115]
[1693928843491,7.69335564,1638.1,1637.8,12.2115]
[1693928843730,1.69661955,1638.0,1637.8,12.2115]
[1693928844317,7.69342564,1638.1,1637.8,12.2115]
[1693928844528,6.73996601,1638.1,1637.8,12.2115]
[1693928845608,7.69341564,1638.1,1637.8,12.2115]
[1693928845780,1.69665091,1638.0,1637.8,12.2115]
[1693928846329,0.63526601,1638.1,1637.9,0.01615826]
[1693928846543,1.69659515,1638.1,1637.9,6.12141826]
[1693928847420,7.69315564,1638.2,1637.9,6.12141826]
[1693928847647,1.69660145,1638.1,1637.9,6.12141826]
[1693928848223,7.80132145,1638.1,1637.9,6.12141826]
[1693928848425,12.84470601,1638.1,1637.9,0.01615826]
[1693928848610,15.01996357,1638.1,1637.9,0.01615826]
[1693928850009,17.12656357,1638.1,1637.9,0.01615826]
[1693928850201,14.95130601,1638.1,1637.9,0.01615826]
[1693928851341,2.1066,1638.1,1637.9,6.12138826]
[1693928851543,2.1066,1638.1,1637.9,12.22675826]
[1693928852316,0.63526601,1638.2,1637.9,12.22675826]
[1693928852533,2.82736601,1638.3,1637.9,18.33212826]
[1693928853461,8.93128601,1638.3,1637.9,18.33212826]
[1693928853658,8.32118601,1638.3,1637.9,18.33212826]
[1693928853807,8.32118601,1638.3,1638.0,0.6101]
[1693928853991,37.50698963,1638.4,1638.1,12.81936]
[1693928853992,36.55354,1638.4,1638.1,12.81936]
[1693928854199,36.55354,1638.4,1638.3,0.01615826]
[1693928854200,6.10354,1638.4,1638.3,0.01615826]
[1693928863208,8.52763,1638.5,1638.3,0.01615826]
[1693928864509,8.52763,1638.5,1638.4,0.00379727]
[1693928864708,9.99067,1638.5,1638.4,0.00379727]
[1693928866312,2.4243,1638.5,1638.4,0.00379727]
[1693928866519,0.101,1638.5,1638.4,12.21081727]
[1693928868124,0.101,1638.5,1638.4,18.31432727]
[1693928869228,0.101,1638.5,1638.4,18.92442727]
[1693928873185,0.101,1638.5,1638.4,20.24442727]
[1693928873702,0.101,1638.5,1638.4,20.72442727]
[1693928875637,0.101,1638.5,1638.4,23.79144153]
[1693928876040,0.101,1638.5,1638.4,26.79144153]
[1693928878127,0.101,1638.5,1638.4,23.72442727]
[1693928880327,0.101,1638.5,1638.4,24.21003699]
[1693928880732,0.101,1638.5,1638.4,21.92442727]
[1693928881942,0.101,1638.5,1638.4,23.24442727]
[1693928882464,0.101,1638.5,1638.4,26.31144153]
[1693928882673,0.101,1638.5,1638.4,26.79144153]
[1693928883458,0.101,1638.5,1638.4,23.24442727]
[1693928883672,0.101,1638.5,1638.4,26.72442727]
[1693928887460,0.101,1638.5,1638.4,26.24442727]
[1693928887684,0.101,1638.5,1638.4,26.72442727]
[1693928889143,0.101,1638.5,1638.4,24.92442727]
[1693928892689,0.101,1638.5,1638.4,26.24442727]
[1693928892893,0.101,1638.5,1638.4,26.72442727]
[1693928893086,0.101,1638.5,1638.4,26.24442727]
[1693928893287,0.101,1638.5,1638.4,26.72442727]
[1693928897593,0.101,1638.5,1638.4,29.79144153]
[1693928897913,0.101,1638.5,1638.4,35.89495153]
[1693928898065,0.73634831,1638.8,1638.7,0.01615826]
[1693928898066,0.101,1638.8,1638.7,0.01615826]
[1693928898277,0.101,1638.8,1638.7,20.25342826]
[1693928898599,0.101,1638.8,1638.7,20.73342826]
[1693928898828,0.101,1638.8,1638.7,23.80044252]
[1693928899002,0.101,1638.8,1638.7,26.80044252]
[1693928901586,0.101,1638.8,1638.7,31.80044252]
[1693928903344,3.79449794,1639.2,1639.0,18.93009826]
[1693928903513,2.84104831,1639.2,1639.1,1.32]
[1693928903723,3.42672658,1639.2,1639.1,19.6227]
[1693928904435,3.42667992,1639.2,1639.1,19.6227]
[1693928904605,2.94944287,1639.2,1639.1,19.6227]
[1693928905009,2.94944287,1639.2,1639.1,18.3027]
[1693928905194,3.42668297,1639.2,1639.1,18.3027]
[1693928905401,2.94944287,1639.2,1639.1,18.3027]
[1693928905930,2.31409456,1639.2,1639.1,18.3027]
[1693928906102,2.94944287,1639.2,1639.1,18.3027]
[1693928906502,2.2057,1639.2,1639.1,18.3027]
[1693928906729,2.31406809,1639.2,1639.1,18.3027]
[1693928906933,2.31406785,1639.2,1639.1,18.3027]
[1693928907135,2.2057,1639.2,1639.1,18.3027]
[1693928907929,1.58879794,1639.3,1639.1,18.3027]
[1693928908125,0.63534831,1639.3,1639.2,18.31774826]
[1693928910207,1.22087449,1639.3,1639.2,18.31774826]
[1693928910864,0.7437042,1639.3,1639.2,19.63774826]
[1693928911018,3.71839794,1639.4,1639.2,22.63774826]
[1693928911205,2.76494831,1639.4,1639.3,1.32]
[1693928911439,1.69713697,1639.4,1639.3,19.62048]
[1693928911624,1.22086084,1639.4,1639.3,19.62048]
[1693928912548,1.22086084,1639.4,1639.3,21.17756807]
[1693928913322,0.74368734,1639.4,1639.3,24.72458233]
[1693928913634,4.58879794,1639.5,1639.4,0.01615826]
[1693928913858,5.17419388,1639.5,1639.4,18.79552826]
[1693928914421,4.22074425,1639.5,1639.4,18.79552826]
[1693928915117,5.17419388,1639.5,1639.4,18.79552826]
[1693928915312,4.22074425,1639.5,1639.4,18.79552826]
[1693928915949,4.22074425,1639.5,1639.4,12.21573826]
[1693928916242,5.17419388,1639.5,1639.4,15.21573826]
[1693928916417,4.22074425,1639.5,1639.4,15.21573826]
[1693928917950,3.74365086,1639.5,1639.4,15.21573826]
[1693928919350,3.10830255,1639.5,1639.4,15.21573826]
[1693928919547,3.0,1639.5,1639.4,15.21573826]
[1693928919946,3.74345045,1639.5,1639.4,15.21573826]
[1693928920148,10.54825046,1639.5,1639.4,3.01615826]
[1693928920462,11.34311477,1639.5,1639.4,3.01615826]
[1693928920961,5.8816,1639.5,1639.4,9.09979]
[1693928921148,5.8816,1639.5,1639.4,9.11594826]
[1693928921458,5.88160645,1639.5,1639.4,9.11594826]
[1693928921632,5.88160645,1639.5,1639.4,3.01615826]
[1693928922028,5.24369477,1639.5,1639.4,3.01615826]
[1693928923457,6.51496094,1639.5,1639.4,3.01615826]
[1693928924032,5.24369477,1639.5,1639.4,3.01615826]
[1693928925164,6.51496094,1639.5,1639.4,3.01615826]
[1693928925341,6.51844638,1639.5,1639.4,3.01615826]
[1693928925859,6.51844902,1639.5,1639.4,3.01615826]
[1693928926071,6.33697213,1639.5,1639.4,3.01615826]
[1693928926379,6.3369915,1639.5,1639.4,3.01615826]
[1693928926860,4.54182302,1639.5,1639.4,9.11594826]
[1693928927066,5.17975566,1639.5,1639.4,9.11594826]
[1693928927379,4.54182302,1639.5,1639.4,9.11594826]
[1693928927771,5.17978618,1639.5,1639.4,9.11594826]
[1693928928276,4.54182302,1639.5,1639.4,9.11594826]
[1693928929276,5.35882194,1639.5,1639.4,3.01615826]
[1693928929465,12.54814017,1639.5,1639.4,3.01615826]
[1693928929660,18.64756017,1639.5,1639.4,3.01615826]
[1693928931296,20.24237907,1639.5,1639.4,3.01615826]
[1693928932154,18.9711129,1639.5,1639.4,3.01615826]
[1693928935529,17.376294,1639.5,1639.4,3.01615826]
[1693928935716,20.44330826,1639.5,1639.4,3.01615826]
[1693928937004,5.95736479,1639.5,1639.4,9.11594826]
[1693928937203,5.95736479,1639.5,1639.4,3.01615826]
[1693928938299,18.47307777,1639.5,1639.4,3.01615826]
[1693928939361,19.53190693,1639.5,1639.4,3.01615826]
[1693928941604,12.05868412,1639.5,1639.4,3.01615826]
[1693928941913,10.45987508,1639.5,1639.4,3.01615826]
[1693928943396,4.36045508,1639.5,1639.4,3.01615826]
[1693928944301,4.36045508,1639.5,1639.4,9.11594826]
[1693928944484,6.27423777,1639.5,1639.4,3.01615826]
[1693928946807,7.33385864,1639.5,1639.4,3.01615826]
[1693928947007,3.77558995,1639.5,1639.4,3.01615826]
[1693928947184,6.28308213,1639.5,1639.4,3.01615826]
[1693928952031,10.46181155,1639.5,1639.4,3.01615826]
[1693928954817,10.46181155,1639.5,1639.4,3.01987256]
[1693928956394,11.52143242,1639.5,1639.4,3.01987256]
[1693928956587,17.62085242,1639.5,1639.4,3.01987256]
[1693928956926,19.8616581,1639.5,1639.4,3.01987256]
[1693928959216,31.63426817,1639.5,1639.4,3.0037143]
[1693928959386,34.27426817,1639.5,1639.4,3.0037143]
[1693928959590,34.6804142,1639.5,1639.4,3.0037143]
[1693928959793,37.6804142,1639.5,1639.4,3.0037143]
[1693928960303,38.1604142,1639.5,1639.4,3.0037143]
[1693928960501,21.28321174,1639.4,1639.3,8.07e-06]
[1693928960698,39.9254203,1639.4,1639.3,8.07e-06]
[1693928960886,42.1634203,1639.4,1639.3,8.07e-06]
[1693928961140,44.3109203,1639.4,1639.3,8.07e-06]
[1693928962509,45.4329243,1639.4,1639.3,8.07e-06]
[1693928962714,44.10448126,1639.4,1639.3,8.07e-06]
[1693928962909,46.7529243,1639.4,1639.3,8.07e-06]
[1693928963722,44.10448126,1639.4,1639.3,8.07e-06]
[1693928964325,46.7529243,1639.4,1639.3,8.07e-06]
[1693928964725,2.98384174,1639.1,1638.6,0.62625826]
[1693928964904,0.96006028,1638.7,1638.6,0.62625826]
[1693928965098,7.54081826,1638.7,1638.6,0.62625826]
[1693928965302,13.75164188,1638.7,1638.6,0.6101]
[1693928965499,13.75164188,1638.7,1638.4,0.63005553]
[1693928965500,15.03172225,1638.7,1638.4,0.63005553]
[1693928965700,1.226674,1638.6,1638.4,0.63005553]
[1693928965920,8.20363393,1638.6,1638.4,0.63005553]
[1693928966130,7.70293268,1638.6,1638.4,0.63005553]
[1693928966523,7.70293268,1638.6,1638.4,0.01995553]
[1693928966730,6.7428724,1638.6,1638.4,0.01995553]
[1693928967434,0.69910479,1638.5,1638.4,0.00379727]
[1693928967736,14.14280721,1638.5,1638.4,0.00379727]
[1693928968095,20.24594721,1638.5,1638.4,0.00379727]
[1693928968395,21.56594721,1638.5,1638.4,0.00379727]
[1693928968608,21.12479417,1638.5,1638.4,0.00379727]
[1693928968816,21.56559579,1638.5,1638.4,0.00379727]
[1693928969215,20.24559579,1638.5,1638.4,0.00379727]
[1693928969695,19.80479417,1638.5,1638.4,0.00379727]
[1693928969897,19.00852479,1638.5,1638.4,0.00379727]
[1693928970111,18.30942,1638.5,1638.4,0.00379727]
[1693928970505,6.10314,1638.5,1638.4,0.00379727]